fUSD/lending_fUSD_20241106
["ID","MTS","AMOUNT","RATE_DAILY","PERIOD"]
[341420937,1730872247598,-500.0,0.00037986,14]
[341420938,1730872247607,-500.0,0.00037986,14]
[341420939,1730872247618,-500.0,0.00037986,14]
[341420940,1730872247628,-543.51230059,0.00037986,14]
[341420941,1730872247637,-374.54548802,0.00037986,14]
[341420942,1730872247646,-500.0,0.00037986,14]
[341420943,1730872247655,-500.0,0.00037986,14]
[341420944,1730872247664,-500.0,0.00037986,14]
[341420945,1730872247673,-150.0,0.00037986,14]
[341420946,1730872247683,-150.0,0.00037986,14]
[341420947,1730872247692,-347.18532344,0.00037986,14]
[341420948,1730872247701,-500.0,0.00037986,14]
[341420949,1730872247710,-500.0,0.00037986,14]
[341420950,1730872247718,-500.0,0.00037986,14]
[341420951,1730872247727,-500.0,0.00037986,14]
[341420952,1730872247736,-500.0,0.00037986,14]
[341420953,1730872247745,-500.0,0.00037986,14]
[341420954,1730872247754,-500.0,0.00037986,14]
[341420955,1730872247764,-500.0,0.00037986,14]
[341420956,1730872247773,-500.0,0.00037986,14]
[341420957,1730872247782,-500.0,0.00037986,14]
[341420958,1730872247792,-500.0,0.00037986,14]
[341420959,1730872247801,-500.0,0.00037986,14]
[341420960,1730872247810,-500.0,0.00037986,14]
[341420961,1730872247819,-500.0,0.00037986,14]
[341420962,1730872247827,-500.0,0.00037986,14]
[341420963,1730872247836,-516.82582427,0.00037986,14]
[341420964,1730872247846,-500.0,0.00037986,14]
[341420965,1730872247854,-250.0,0.00037986,14]
[341420966,1730872247863,-250.0,0.00037986,14]
[341420967,1730872247873,-200.0,0.00037986,7]
[341420968,1730872247882,-200.2,0.00037986,7]
[341420969,1730872247890,-967.65352,0.00037986,2]
[341420970,1730872247898,-176.3408248,0.00037986,14]
[341420971,1730872247908,-637.81193646,0.00037986,14]
[341420972,1730872247916,-500.0,0.00037986,14]
[341420973,1730872247925,-500.0,0.00037986,14]
[341420974,1730872247935,-487.065987,0.00037986,14]
[341420975,1730872247945,-260.94466188,0.00037986,14]
[341420976,1730872247954,-522052.65381815,0.00037987,2]
[341420977,1730872247963,-225.58027781,0.00037987,2]
[341420978,1730872247972,-200.0,0.00037987,2]
[341420979,1730872247983,-500.0,0.00037987,14]
[341420980,1730872247992,-500.0,0.00037987,14]
[341420981,1730872248001,-500.0,0.00037987,14]
[341420982,1730872248010,-500.0,0.00037987,14]
[341420983,1730872248019,-500.0,0.00037987,14]
[341420984,1730872248028,-150.0,0.00037987,14]
[341420985,1730872248038,-8917.7190404,0.00037987,2]
[341420986,1730872248047,-500.0,0.00037988,14]
[341420987,1730872248056,-1578.98,0.00037988,14]
[341420988,1730872248065,-500.0,0.00037988,14]
[341420989,1730872248075,-1041.66,0.00037988,14]
[341420990,1730872248084,-2701.91,0.00037988,14]
[341420991,1730872248093,-500.0,0.00037988,14]
[341420992,1730872248103,-500.0,0.00037988,14]
[341420993,1730872248112,-500.0,0.00037988,14]
[341420994,1730872248120,-2178.94,0.00037988,14]
[341420995,1730872248129,-616.5,0.00037988,14]
[341420996,1730872248139,-1780.65,0.00037988,14]
[341420997,1730872248147,-500.0,0.00037988,14]
[341420998,1730872248156,-500.0,0.00037988,14]
[341420999,1730872248166,-2189.54,0.00037988,7]
[341421000,1730872248175,-552.67,0.00037988,14]
[341421001,1730872248184,-500.0,0.00037988,14]
[341421002,1730872248193,-9382.35,0.00037988,14]
[341421003,1730872248202,-1066.88,0.00037988,14]
[341421004,1730872248211,-500.0,0.00037988,14]
[341421005,1730872248220,-500.0,0.00037988,14]
[341421006,1730872248229,-7779.72,0.00037988,2]
[341421007,1730872248239,-974.76,0.00037988,14]
[341421008,1730872248248,-1740.54,0.00037988,14]
[341421009,1730872248258,-500.0,0.00037988,14]
[341421010,1730872248267,-500.0,0.00037988,14]
[341421011,1730872248277,-500.0,0.00037988,14]
[341421012,1730872248286,-661.25,0.00037988,14]
[341421013,1730872248295,-1000.0,0.00037988,120]
[341421014,1730872248305,-1067.28,0.00037988,14]
[341421015,1730872248314,-261.27398035,0.00037988,4]
[341421016,1730872248323,-500.0,0.00037988,2]
[341421017,1730872248334,-500.0,0.00037988,14]
[341421018,1730872248343,-500.0,0.00037988,14]
[341421019,1730872248352,-590.35,0.00037988,14]
[341421020,1730872248361,-500.0,0.00037988,14]
[341421021,1730872248370,-500.0,0.00037988,14]
[341421022,1730872248379,-500.0,0.00037988,14]
[341421023,1730872248389,-500.0,0.00037988,14]
[341421024,1730872248398,-500.0,0.00037988,14]
[341421025,1730872248408,-500.0,0.00037988,14]
[341421026,1730872248417,-150.0,0.00037988,14]
[341421027,1730872248426,-500.0,0.00037988,14]
[341421028,1730872248438,-500.0,0.00037988,14]
[341421029,1730872248447,-500.0,0.00037988,14]
[341421030,1730872248457,-500.0,0.00037988,14]
[341421031,1730872248467,-500.0,0.00037988,14]
[341421032,1730872248476,-4877.68,0.00037988,120]
[341421033,1730872248485,-500.0,0.00037989,14]
[341421034,1730872248495,-500.0,0.00037989,14]
[341421035,1730872248506,-500.0,0.00037989,14]
[341421036,1730872248515,-500.0,0.00037989,14]
[341421037,1730872248526,-591.58,0.00037989,14]
[341421038,1730872248538,-500.0,0.00037989,14]
[341421039,1730872248548,-500.0,0.00037989,14]
[341421040,1730872248558,-494.48638365,0.00037989,14]
[341421041,1730872248568,-241.19458013,0.00037989,10]
[341421042,1730872248578,-500.0,0.00037989,14]
[341421043,1730872248587,-500.0,0.00037989,14]
[341421044,1730872248596,-500.0,0.00037989,14]
[341421045,1730872248605,-170.71448034,0.00037989,14]
[341421046,1730872248616,-500.0,0.00037989,14]
[341421047,1730872248625,-500.0,0.00037989,14]
[341421048,1730872248634,-500.0,0.00037989,14]
[341421049,1730872248877,-328.31335588,0.00037989,14]
[341421050,1730872248887,-500.0,0.00037989,14]
[341421051,1730872248897,-500.0,0.00037989,14]
[341421052,1730872248906,-500.0,0.00037989,14]
[341421053,1730872248916,-313.66687222,0.00037989,14]
[341421054,1730872248931,-186.33312778,0.00037989,14]
[341421055,1730872248943,-500.0,0.00037989,14]
[341421056,1730872248952,-500.0,0.00037989,14]
[341421057,1730872248962,-500.0,0.00037989,14]
[341421058,1730872248972,-500.0,0.00037989,14]
[341421059,1730872248981,-1395.13,0.00037989,14]
[341421060,1730872248990,-1395.13,0.00037989,14]
[341421061,1730872248999,-1395.13,0.00037989,14]
[341421062,1730872249008,-500.0,0.00037989,14]
[341421063,1730872249017,-500.0,0.00037989,14]
[341421064,1730872249026,-500.0,0.00037989,14]
[341421065,1730872249035,-354.86309469,0.00037989,14]
[341421066,1730872249044,-500.0,0.00037989,14]
[341421067,1730872249053,-4.14269685,0.00037989,7]
[341421068,1730872249069,-527.0,0.00037889,7]
[341421069,1730872249078,-725.69730315,0.00037989,7]
[341421070,1730872249087,-500.0,0.00037989,14]
[341421071,1730872249096,-257.99930617,0.00037989,7]
[341421072,1730872249108,-471.84069383,0.00037989,7]
[341421073,1730872249118,-500.0,0.00037989,14]
[341421074,1730872249127,-729.84,0.00037989,7]
[341421075,1730872249137,-500.0,0.00037989,14]
[341421076,1730872249146,-299.7383189,0.00037989,14]
[341421077,1730872249155,-1097.3,0.00037989,14]
[341421078,1730872249165,-1097.3,0.00037989,14]
[341421079,1730872249174,-1097.3,0.00037989,14]
[341421080,1730872249185,-1097.3,0.00037989,14]
[341421081,1730872249194,-300.49114569,0.00037989,14]
[341421082,1730872249203,-256.27751458,0.00037989,14]
[341421083,1730872249219,-171.89151872,0.00037843,15]
[341421084,1730872249228,-243.72248542,0.00037989,14]
[341421085,1730872249237,-500.0,0.00037989,14]
[341421086,1730872249246,-500.0,0.00037989,14]
[341421087,1730872249256,-461.88599586,0.00037989,14]
[341421088,1730872249304,-38.11400414,0.00037989,14]
[341421089,1730872249313,-48.88519188,0.00037989,14]
[341421090,1730872249325,-451.11480812,0.00037989,14]
[341421091,1730872249334,-500.0,0.00037989,14]
[341421092,1730872249343,-165.74856888,0.00037989,14]
[341421094,1730872253333,2500.49,0.00036997,120]
[341421095,1730872283222,150.0,0.00018123,2]
[341421096,1730872337527,500.0,0.0003,30]
[341421097,1730872337842,528.21002232,0.0003,30]
[341421098,1730872375213,151.0,0.0003,120]
[341421099,1730872375786,151.0,0.00036,120]
[341421100,1730872471976,250.0,0.00036669,120]
[341421101,1730872481071,399.61,0.00036643,120]
[341421103,1730872574604,395.74,0.00036873,120]
[341421104,1730872595864,166.2,0.00036607,120]
[341421109,1730873025050,250.0,0.00036542,120]
[341421110,1730873077137,375.95,0.00036748,120]
[341421112,1730873138146,-500.0,0.0001726,2]
[341421113,1730873138166,-41.97241595,0.0001726,2]
[341421115,1730873199140,-245.2185672,0.0001726,2]
[341421116,1730873199161,-200.0,0.00024658,2]
[341421117,1730873199187,-173.62787862,0.00024832,2]
[341421118,1730873199207,-500.0,0.00024932,2]
[341421119,1730873199227,-1413.91107111,0.000256,2]
[341421121,1730873227089,-253.49861783,0.000256,2]
[341421122,1730873244054,179.71,0.00036548,120]
[341421123,1730873254096,-359.2271799,0.000256,2]
[341421129,1730873345152,-164.36313116,0.000256,2]
[341421130,1730873345175,-500.0,0.0003,30]
[341421131,1730873345198,-200.0,0.000342,2]
[341421143,1730873431424,-649.95,0.00034593,2]
[341421144,1730873431434,-851.5,0.00035758,2]
[341421145,1730873431443,-399.59521569,0.00036333,2]
[341421146,1730873431545,-451.90478431,0.00036333,2]
[341421147,1730873431554,-56.9680771,0.00036524,2]
[341421148,1730873431566,-193.0319229,0.00036524,2]
[341421149,1730873431577,-455.88782788,0.00036524,2]
[341421150,1730873431588,-1551.59999714,0.00036524,2]
[341421151,1730873431599,-1110.71107,0.00036524,2]
[341421152,1730873431610,-2704.11559046,0.00036524,2]
[341421153,1730873431621,-6144.71099672,0.00036524,2]
[341421154,1730873431632,-420.98804803,0.00036524,2]
[341421155,1730873431649,-4329.76435129,0.00036524,2]
[341421156,1730873431661,-2837.17115738,0.00036524,2]
[341421157,1730873431670,-1144.36,0.00036537,2]
[341421158,1730873431679,-249.51990081,0.00036548,14]
[341421159,1730873431688,-207.4,0.00036553,2]
[341421160,1730873431698,-167.17,0.00036566,2]
[341421161,1730873431707,-200.0,0.00036578,7]
[341421162,1730873431717,-340.19,0.00036582,2]
[341421163,1730873431725,-177.98,0.00036585,2]
[341421164,1730873431734,-250.0,0.00036612,2]
[341421165,1730873431743,-13343.82,0.00036613,2]
[341421166,1730873431752,-1264.05,0.00036643,46]
[341421167,1730873431761,-1000.0,0.00036744,2]
[341421168,1730873431770,-649.95,0.00036857,2]
[341421169,1730873431779,-851.5,0.00036907,2]
[341421170,1730873431788,-161.3,0.00036929,2]
[341421171,1730873431797,-156.0,0.00036929,2]
[341421172,1730873431806,-761.58,0.00036941,2]
[341421173,1730873431815,-161.3,0.00036981,2]
[341421174,1730873431825,-161.3,0.00037034,2]
[341421175,1730873431835,-161.3,0.00037087,2]
[341421176,1730873431844,-161.3,0.0003714,2]
[341421177,1730873431854,-161.3,0.00037192,2]
[341421178,1730873431863,-159.530206,0.00037214,2]
[341421179,1730873431873,-161.3,0.00037245,2]
[341421180,1730873431882,-161.3,0.00037298,2]
[341421181,1730873431891,-420.35743639,0.00037375,2]
[341421182,1730873431901,-851.5,0.00037482,2]
[341421183,1730873431915,-806.37794,0.0003761,2]
[341421184,1730873431925,-166.76,0.00037633,2]
[341421185,1730873431934,-150.0,0.00037738,2]
[341421186,1730873431944,-150.0,0.00037739,2]
[341421187,1730873431954,-758.21085718,0.00037745,2]
[341421188,1730873431964,-420.35743639,0.00037747,2]
[341421189,1730873431973,-150.0,0.00037755,2]
[341421190,1730873431983,-150.0,0.00037756,2]
[341421191,1730873431993,-150.0,0.00037762,2]
[341421192,1730873432003,-150.0,0.00037776,2]
[341421193,1730873432013,-150.0,0.00037786,2]
[341421194,1730873432022,-150.0,0.00037788,2]
[341421195,1730873432032,-150.0,0.000378,2]
[341421196,1730873432042,-427.45,0.00037808,2]
[341421197,1730873432052,-1144.46,0.00037808,2]
[341421198,1730873432061,-761.58,0.00037808,2]
[341421199,1730873432070,-761.58,0.00037808,2]
[341421200,1730873432081,-761.58,0.00037808,2]
[341421201,1730873432090,-1495.04,0.00037808,2]
[341421202,1730873432099,-150.0,0.00037833,2]
[341421203,1730873432109,-150.0,0.00037861,2]
[341421204,1730873432118,-150.0,0.00037869,2]
[341421205,1730873432128,-150.0,0.0003787,2]
[341421206,1730873432137,-150.0,0.00037875,2]
[341421207,1730873432147,-650.0,0.0003788,2]
[341421208,1730873432156,-500.0,0.00037882,3]
[341421209,1730873432165,-5800.0,0.00037883,2]
[341421210,1730873432174,-2103.6047,0.00037885,2]
[341421211,1730873432183,-230.46,0.00037885,10]
[341421212,1730873432192,-604.80410959,0.00037885,2]
[341421213,1730873432201,-359.82,0.00037886,10]
[341421214,1730873432210,-150.0,0.00037886,2]
[341421215,1730873432219,-150.0,0.00037887,2]
[341421216,1730873432228,-604.80410957,0.00037887,2]
[341421217,1730873432237,-500.0,0.00037888,14]
[341421218,1730873432246,-500.0,0.00037888,14]
[341421219,1730873432255,-182.53627125,0.00037888,15]
[341421220,1730873432265,-604.80410957,0.00037889,2]
[341421221,1730873432274,-182.53627116,0.00037889,15]
[341421222,1730873432284,-500.0,0.0003789,14]
[341421223,1730873432293,-500.0,0.0003789,14]
[341421224,1730873432302,-524.14,0.0003789,14]
[341421225,1730873432311,-500.0,0.0003789,14]
[341421226,1730873432321,-500.0,0.0003789,14]
[341421227,1730873432332,-280.25638171,0.0003789,14]
[341421228,1730873432342,-338.57709744,0.0003789,14]
[341421229,1730873432351,-500.0,0.0003789,14]
[341421230,1730873432360,-500.0,0.0003789,14]
[341421231,1730873432369,-500.0,0.0003789,14]
[341421232,1730873432378,-500.0,0.0003789,14]
[341421233,1730873432388,-483.79831055,0.0003789,14]
[341421234,1730873432398,-500.0,0.0003789,14]
[341421235,1730873432408,-500.0,0.0003789,14]
[341421236,1730873432418,-515.2363728,0.0003789,7]
[341421237,1730873432427,-500.0,0.0003789,14]
[341421238,1730873432436,-561.7,0.0003789,14]
[341421239,1730873432446,-500.0,0.0003789,14]
[341421240,1730873432455,-500.0,0.0003789,14]
[341421241,1730873432464,-500.0,0.0003789,14]
[341421242,1730873432473,-216.8435629,0.0003789,12]
[341421243,1730873432483,-351.26022225,0.0003789,2]
[341421244,1730873432492,-182.53627116,0.00037891,15]
[341421245,1730873432502,-500.0,0.00037891,3]
[341421246,1730873432511,-5800.0,0.00037892,2]
[341421247,1730873432521,-182.53627116,0.00037892,15]
[341421248,1730873432530,-150.0,0.00037892,2]
[341421249,1730873432540,-182.53627116,0.00037893,15]
[341421250,1730873432549,-182.53627116,0.00037895,15]
[341421251,1730873432558,-182.53627116,0.00037896,15]
[341421252,1730873432568,-150.0,0.00037897,2]
[341421253,1730873432579,-182.53627116,0.00037897,15]
[341421254,1730873432589,-216.8435629,0.00037898,12]
[341421255,1730873432598,-182.53627116,0.00037899,15]
[341421256,1730873432607,-500.0,0.000379,3]
[341421257,1730873432616,-5800.0,0.000379,2]
[341421258,1730873432626,-187.79757178,0.000379,2]
[341421259,1730873432635,-398.0,0.000379,23]
[341421260,1730873432645,-196.0,0.000379,23]
[341421261,1730873432654,-182.53627116,0.000379,15]
[341421262,1730873432663,-150.0,0.00037903,2]
[341421263,1730873432672,-1500.0,0.00037905,2]
[341421264,1730873432682,-150.0,0.00037907,2]
[341421265,1730873432691,-150.0,0.00037908,2]
[341421266,1730873432700,-150.0,0.00037919,2]
[341421267,1730873432709,-150.0,0.00037919,2]
[341421268,1730873432718,-150.0,0.00037924,2]
[341421269,1730873432727,-150.0,0.00037925,2]
[341421270,1730873432736,-753.92,0.00037937,3]
[341421271,1730873432745,-500.0,0.00037945,14]
[341421272,1730873432754,-150.0,0.00037947,2]
[341421273,1730873432762,-150.0,0.00037954,2]
[341421274,1730873432771,-324.00143587,0.00037973,5]
[341421275,1730873432780,-160.23300202,0.00037973,5]
[341421276,1730873432789,-150.0,0.00037974,2]
[341421277,1730873432799,-500.0,0.00037979,14]
[341421278,1730873432808,-500.0,0.00037979,14]
[341421279,1730873432817,-500.0,0.00037979,14]
[341421280,1730873432827,-553.75831797,0.00037979,14]
[341421281,1730873432836,-538.45407442,0.00037979,7]
[341421282,1730873432845,-543.31490561,0.00037979,14]
[341421283,1730873432855,-500.0,0.00037979,14]
[341421284,1730873432864,-500.0,0.00037979,14]
[341421285,1730873432874,-500.0,0.00037979,14]
[341421286,1730873432883,-500.0,0.00037979,14]
[341421287,1730873432892,-500.0,0.00037979,14]
[341421288,1730873432902,-500.0,0.00037979,14]
[341421289,1730873432912,-500.0,0.00037979,14]
[341421290,1730873432923,-500.0,0.00037979,14]
[341421291,1730873432933,-500.0,0.00037979,14]
[341421292,1730873432942,-500.0,0.00037979,14]
[341421293,1730873432951,-510.98104551,0.00037979,14]
[341421294,1730873432961,-500.0,0.00037979,14]
[341421295,1730873432971,-500.0,0.00037979,14]
[341421296,1730873432980,-500.0,0.00037979,14]
[341421297,1730873432989,-520.91577703,0.00037979,14]
[341421298,1730873433000,-6922.7586983,0.00037982,2]
[341421299,1730873433010,-500.0,0.00037983,14]
[341421300,1730873433019,-500.0,0.00037983,14]
[341421301,1730873433028,-500.0,0.00037985,14]
[341421302,1730873433039,-500.0,0.00037985,14]
[341421303,1730873433048,-500.0,0.00037985,14]
[341421304,1730873433059,-500.0,0.00037985,14]
[341421305,1730873433069,-500.0,0.00037985,14]
[341421306,1730873433082,-500.0,0.00037985,14]
[341421307,1730873433095,-500.0,0.00037985,14]
[341421308,1730873433105,-500.0,0.00037985,14]
[341421309,1730873433115,-384.96,0.00037985,14]
[341421310,1730873433125,-538.73364282,0.00037985,14]
[341421311,1730873433134,-500.0,0.00037985,14]
[341421312,1730873433144,-500.0,0.00037985,14]
[341421313,1730873433153,-500.0,0.00037985,14]
[341421314,1730873433163,-309.33740723,0.00037985,14]
[341421315,1730873433173,-347.37,0.00037985,14]
[341421316,1730873433182,-500.0,0.00037985,14]
[341421317,1730873433191,-275.37036595,0.00037985,14]
[341421318,1730873433200,-500.0,0.00037985,14]
[341421319,1730873433209,-500.0,0.00037985,14]
[341421320,1730873433218,-500.0,0.00037985,14]
[341421321,1730873433227,-163.33269855,0.00037985,14]
[341421322,1730873433236,-500.0,0.00037985,14]
[341421323,1730873433245,-500.0,0.00037985,14]
[341421324,1730873433255,-500.0,0.00037985,14]
[341421325,1730873433265,-186.3982214,0.00037986,14]
[341421326,1730873433274,-500.0,0.00037986,14]
[341421327,1730873433283,-474.1,0.00037986,14]
[341421328,1730873433292,-308.66292964,0.00037986,14]
[341421329,1730873433301,-500.0,0.00037986,14]
[341421330,1730873433310,-500.0,0.00037986,14]
[341421331,1730873433319,-500.0,0.00037986,14]
[341421332,1730873433331,-500.0,0.00037986,14]
[341421333,1730873433340,-500.0,0.00037986,14]
[341421334,1730873433349,-500.0,0.00037986,14]
[341421335,1730873433359,-394.36,0.00037986,14]
[341421336,1730873433368,-499.3052907,0.00037986,14]
[341421337,1730873433378,-500.0,0.00037986,14]
[341421338,1730873433388,-500.0,0.00037986,14]
[341421339,1730873433397,-500.0,0.00037986,14]
[341421340,1730873433407,-500.0,0.00037986,14]
[341421341,1730873433416,-555.89,0.00037986,14]
[341421342,1730873433426,-500.0,0.00037986,14]
[341421343,1730873433435,-500.0,0.00037986,14]
[341421344,1730873433444,-500.0,0.00037986,14]
[341421345,1730873433453,-500.0,0.00037986,14]
[341421346,1730873433463,-500.0,0.00037987,14]
[341421347,1730873433472,-320.60945796,0.00037988,2]
[341421348,1730873433482,-3889.54388188,0.00037988,2]
[341421349,1730873433491,-500.0,0.00037988,14]
[341421350,1730873433501,-500.0,0.00037988,14]
[341421351,1730873433510,-500.0,0.00037988,14]
[341421352,1730873433520,-500.0,0.00037988,14]
[341421353,1730873433529,-500.0,0.00037988,14]
[341421354,1730873433539,-500.0,0.00037988,14]
[341421355,1730873433549,-500.0,0.00037988,14]
[341421356,1730873433559,-500.0,0.00037988,14]
[341421357,1730873433568,-500.0,0.00037988,14]
[341421358,1730873433580,-500.0,0.00037988,14]
[341421359,1730873433590,-500.0,0.00037988,14]
[341421360,1730873433600,-500.0,0.00037988,14]
[341421361,1730873433609,-500.0,0.00037988,14]
[341421362,1730873433619,-592.5811945,0.00037988,14]
[341421363,1730873433629,-500.0,0.00037988,14]
[341421364,1730873433639,-584.39250074,0.00037988,14]
[341421365,1730873433649,-500.0,0.00037988,14]
[341421366,1730873433658,-500.0,0.00037988,14]
[341421367,1730873433668,-500.0,0.00037988,14]
[341421368,1730873433678,-500.0,0.00037988,14]
[341421369,1730873433687,-500.0,0.00037988,14]
[341421370,1730873433697,-500.0,0.00037988,14]
[341421371,1730873433707,-500.0,0.00037988,14]
[341421372,1730873433716,-500.0,0.00037988,14]
[341421373,1730873433726,-500.0,0.00037988,14]
[341421374,1730873433736,-500.0,0.00037988,14]
[341421375,1730873433745,-150.0,0.00037988,14]
[341421376,1730873433755,-505.57774384,0.00037988,14]
[341421377,1730873433764,-500.0,0.00037988,14]
[341421378,1730873433774,-500.0,0.00037988,14]
[341421379,1730873433783,-500.0,0.00037988,14]
[341421380,1730873433792,-269.11070614,0.00037988,14]
[341421381,1730873433802,-500.0,0.00037988,14]
[341421382,1730873433811,-632.25,0.00037988,14]
[341421383,1730873433821,-334.25143112,0.00037989,14]
[341421384,1730873433832,-500.0,0.00037989,14]
[341421385,1730873433842,-500.0,0.00037989,14]
[341421386,1730873433851,-500.0,0.00037989,14]
[341421387,1730873433861,-500.0,0.00037989,14]
[341421388,1730873433870,-500.0,0.00037989,14]
[341421389,1730873433879,-161.66964942,0.00037989,14]
[341421390,1730873433889,-500.0,0.00037989,14]
[341421391,1730873433899,-500.0,0.00037989,14]
[341421392,1730873433909,-500.0,0.00037989,14]
[341421393,1730873433922,-154.96,0.00037989,14]
[341421394,1730873433932,-500.0,0.00037989,14]
[341421395,1730873433942,-500.0,0.00037989,14]
[341421396,1730873433953,-500.0,0.00037989,14]
[341421397,1730873433963,-500.0,0.00037989,14]
[341421398,1730873433972,-500.0,0.00037989,14]
[341421399,1730873433981,-500.0,0.00037989,14]
[341421400,1730873433992,-185.40858091,0.00037989,14]
[341421401,1730873434002,-714.19,0.00037989,14]
[341421402,1730873434011,-714.19,0.00037989,14]
[341421403,1730873434021,-714.19,0.00037989,14]
[341421404,1730873434031,-714.19,0.00037989,14]
[341421405,1730873434041,-6582.85,0.00037989,2]
[341421406,1730873434050,-6582.85,0.00037989,2]
[341421407,1730873434060,-6582.85,0.00037989,2]
[341421408,1730873434069,-6582.85,0.00037989,2]
[341421409,1730873434080,-532.7,0.00037989,14]
[341421410,1730873434089,-789.49,0.00037989,14]
[341421411,1730873434098,-789.49,0.00037989,14]
[341421412,1730873434107,-789.49,0.00037989,14]
[341421413,1730873434116,-789.49,0.00037989,14]
[341421414,1730873434126,-500.0,0.00037989,14]
[341421415,1730873434135,-500.0,0.00037989,14]
[341421416,1730873434145,-500.0,0.00037989,14]
[341421417,1730873434158,-500.0,0.00037989,14]
[341421418,1730873434177,-500.0,0.00037989,14]
[341421419,1730873434186,-500.0,0.00037989,14]
[341421420,1730873434196,-500.0,0.00037989,14]
[341421421,1730873434205,-500.0,0.00037989,14]
[341421422,1730873434213,-500.0,0.00037989,14]
[341421423,1730873434223,-500.0,0.00037989,14]
[341421424,1730873434232,-500.0,0.00037989,14]
[341421425,1730873434241,-500.0,0.00037989,14]
[341421426,1730873434251,-500.0,0.00037989,14]
[341421427,1730873434261,-228.69,0.00037989,14]
[341421428,1730873434270,-500.0,0.00037989,14]
[341421429,1730873434280,-500.0,0.00037989,14]
[341421430,1730873434289,-500.0,0.00037989,14]
[341421431,1730873434299,-500.0,0.00037989,14]
[341421432,1730873434308,-518.43949676,0.00037989,14]
[341421433,1730873434318,-500.0,0.00037989,7]
[341421434,1730873434329,-605.18,0.00037989,7]
[341421435,1730873434338,-500.0,0.00037989,14]
[341421436,1730873434347,-500.0,0.00037989,14]
[341421437,1730873434356,-525.37679704,0.00037989,14]
[341421438,1730873434366,-500.0,0.00037989,14]
[341421439,1730873434375,-500.0,0.00037989,14]
[341421440,1730873434385,-619.54226314,0.00037989,14]
[341421441,1730873434394,-500.0,0.00037989,14]
[341421442,1730873434404,-500.0,0.00037989,14]
[341421443,1730873434414,-500.0,0.00037989,14]
[341421444,1730873434423,-381.15706596,0.00037989,14]
[341421445,1730873434433,-500.0,0.00037989,14]
[341421446,1730873434443,-500.0,0.00037989,14]
[341421447,1730873434454,-500.0,0.00037989,14]
[341421448,1730873434463,-500.0,0.00037989,14]
[341421449,1730873434472,-500.0,0.00037989,14]
[341421450,1730873434481,-511.25588621,0.00037989,14]
[341421451,1730873434490,-500.0,0.00037989,14]
[341421452,1730873434500,-500.0,0.00037989,14]
[341421453,1730873434510,-519.53887992,0.00037989,14]
[341421454,1730873434519,-502.10572633,0.00037989,14]
[341421455,1730873434528,-500.0,0.00037989,14]
[341421456,1730873434538,-500.0,0.00037989,14]
[341421457,1730873434547,-500.0,0.00037989,14]
[341421458,1730873434556,-500.0,0.00037989,14]
[341421459,1730873434567,-500.0,0.00037989,14]
[341421460,1730873434580,-500.0,0.00037989,14]
[341421461,1730873434590,-508.89385461,0.00037989,14]